bitfinex/quotes_BTCUSD_20241111
["timestamp","ask_amount","ask_price","bid_price","bid_amount"]
[1731331285999,0.122362,81725.0,81720.0,0.01444257]
[1731331286258,0.122362,81725.0,81719.0,0.12237]
[1731331286259,0.122362,81725.0,81724.0,0.00479949]
[1731331286483,1.5,81725.0,81724.0,0.01544257]
[1731331286686,1.5,81725.0,81724.0,0.02024206]
[1731331286887,1.502,81725.0,81724.0,0.01544257]
[1731331287121,1.624361,81725.0,81724.0,0.01544257]
[1731331287327,1.624361,81725.0,81724.0,0.001]
[1731331287571,1.5,81725.0,81724.0,0.01544257]
[1731331287803,1.502,81725.0,81724.0,0.01447183]
[1731331288008,1.506,81725.0,81724.0,0.01447183]
[1731331288241,1.506,81725.0,81724.0,0.15885292]
[1731331288439,0.006,81725.0,81724.0,0.36830855]
[1731331288645,0.006,81725.0,81724.0,0.44520855]
[1731331288878,0.008,81725.0,81724.0,0.44520855]
[1731331289295,0.006,81725.0,81724.0,0.44520855]
[1731331289515,0.12477703,81748.0,81725.0,0.1]
[1731331289721,0.12477703,81748.0,81743.0,0.122333]
[1731331290165,0.12477703,81748.0,81744.0,0.00471551]
[1731331290369,0.00244903,81748.0,81744.0,0.00471551]
[1731331290576,0.244643,81752.0,81744.0,0.00471551]
[1731331290794,0.12477103,81751.0,81744.0,0.122331]
[1731331291017,0.122326,81749.0,81744.0,0.122332]
[1731331291249,0.002,81748.0,81747.0,0.122328]
[1731331291486,0.008,81748.0,81747.0,0.122328]
[1731331291709,0.008,81748.0,81747.0,0.12704255]
[1731331292126,0.002,81748.0,81747.0,0.12704255]
[1731331292555,0.006,81751.0,81747.0,0.12704255]
[1731331292837,0.008,81751.0,81750.0,0.122324]
[1731331293054,0.008,81751.0,81748.0,0.159025]
[1731331293055,0.008,81751.0,81748.0,0.122326]
[1731331293257,0.006,81751.0,81748.0,0.122326]
[1731331293462,0.00244903,81752.0,81749.0,0.00471487]
[1731331293905,1.5,81758.0,81748.0,0.122326]
[1731331293906,0.122315,81756.0,81751.0,0.122322]
[1731331294126,1.5,81758.0,81751.0,0.122322]
[1731331294127,1.5,81758.0,81755.0,0.122316]
[1731331294340,1.5,81758.0,81753.0,0.122318]
[1731331294552,1.5,81758.0,81756.0,0.00467369]
[1731331294776,0.00244903,81757.0,81746.0,0.1]
[1731331294986,0.25375215,81766.0,81746.0,0.1]
[1731331294987,0.001684,81767.0,81766.0,0.1223]
[1731331295393,0.001684,81767.0,81766.0,0.12695594]
[1731331295682,0.001684,81767.0,81766.0,0.00465594]
[1731331295896,0.122313,81757.0,81756.0,0.001]
[1731331296092,0.5048352,81757.0,81756.0,0.001]
[1731331296321,2.01238617,81757.0,81756.0,0.001]
[1731331296536,2.01238617,81757.0,81724.0,0.0792]
[1731331296537,0.12233,81746.0,81729.0,0.122355]
[1731331296748,0.25072124,81746.0,81730.0,0.159059]
[1731331296963,0.25072124,81746.0,81733.0,0.122349]
[1731331297169,0.25072124,81746.0,81715.0,0.005]
[1731331297170,1.5,81746.0,81715.0,0.005]
[1731331297375,0.0842,81757.0,81715.0,0.005]
[1731331297376,0.007,81757.0,81756.0,0.001]
[1731331297588,0.13176203,81757.0,81756.0,0.001]
[1731331297801,1.63176203,81757.0,81756.0,0.001]
[1731331298029,0.122318,81754.0,81748.0,0.122326]
[1731331298252,0.00244903,81753.0,81747.0,0.18380438]
[1731331298454,1.504,81757.0,81751.0,0.122321]
[1731331298673,1.5,81757.0,81750.0,0.15902]
[1731331298875,1.5,81757.0,81747.0,0.18380438]
[1731331298876,1.5,81757.0,81756.0,0.123315]
[1731331299107,1.5,81757.0,81756.0,0.15196779]
[1731331299108,1.504,81757.0,81756.0,0.15196779]
[1731331299315,1.504,81757.0,81756.0,0.122315]
[1731331299538,0.004,81757.0,81756.0,0.12651467]
[1731331299761,0.004,81757.0,81756.0,0.122315]
[1731331299967,0.002,81757.0,81756.0,0.1274671]
[1731331300432,0.03,81758.0,81756.0,0.14090817]
[1731331300643,0.03,81758.0,81757.0,0.32055845]
[1731331300874,0.03,81758.0,81757.0,0.23675407]
[1731331301080,0.03,81758.0,81757.0,0.36684445]
[1731331301977,0.037,81758.0,81757.0,0.36784445]
[1731331302196,0.037,81758.0,81757.0,0.55064883]
[1731331302401,0.037,81758.0,81757.0,0.35240338]
[1731331303106,0.008,81758.0,81757.0,0.35940338]
[1731331303534,0.01,81758.0,81757.0,0.35940338]
[1731331303944,0.008,81758.0,81757.0,0.43600338]
[1731331304363,0.001684,81767.0,81766.0,0.2223]
[1731331304594,0.001684,81767.0,81766.0,0.34824221]
[1731331304805,0.001684,81767.0,81766.0,0.35234156]
[1731331306091,0.001684,81767.0,81766.0,0.35434156]
[1731331306770,0.001684,81767.0,81766.0,0.35234156]
[1731331307436,0.001684,81767.0,81766.0,0.35934156]
[1731331307641,0.001684,81767.0,81766.0,0.23539935]
[1731331308122,0.001684,81767.0,81766.0,0.23339935]
[1731331308339,0.005,81793.0,81766.0,0.23339935]
[1731331308340,0.0028,81803.0,81787.0,0.122268]
[1731331308549,0.0028,81803.0,81787.0,0.39761021]
[1731331308550,0.18380438,81794.0,81787.0,0.39761021]
[1731331308752,0.0028,81803.0,81787.0,0.40123057]
[1731331310845,0.0028,81803.0,81787.0,0.40523057]
[1731331311071,0.0028,81803.0,81787.0,0.41223057]
[1731331311285,0.0028,81803.0,81787.0,0.40823057]
[1731331311666,0.0028,81803.0,81787.0,0.41923057]
[1731331313859,0.001684,81788.0,81787.0,0.41223057]
[1731331314220,0.001684,81788.0,81787.0,0.40123057]
[1731331314449,0.001684,81788.0,81787.0,0.41223057]
[1731331314857,0.001684,81788.0,81787.0,0.40523057]
[1731331315035,0.001684,81788.0,81787.0,0.40123057]
[1731331315230,0.001684,81788.0,81787.0,0.40823057]
[1731331315554,0.001684,81788.0,81787.0,0.41223057]
[1731331315892,0.001684,81788.0,81787.0,0.41923057]
[1731331316591,0.001684,81788.0,81787.0,0.24388836]
[1731331316738,0.001684,81788.0,81787.0,0.23988836]
[1731331316934,0.001684,81788.0,81787.0,0.24388836]
[1731331317462,0.001684,81788.0,81787.0,0.22988836]
[1731331317658,0.001684,81788.0,81787.0,0.22588836]
[1731331317824,0.001684,81788.0,81787.0,0.23288836]
[1731331318019,0.001684,81788.0,81787.0,0.22988836]
[1731331318460,0.001684,81788.0,81787.0,0.35883057]
[1731331319282,1.63833614,81807.0,81791.0,0.15894]
[1731331319670,0.24693103,81806.0,81797.0,0.122253]
[1731331319890,0.244483,81805.0,81791.0,0.15894]
[1731331320092,0.00244903,81804.0,81800.0,0.122248]
[1731331320303,0.00244903,81806.0,81793.0,0.1]
[1731331320507,1.51609714,81807.0,81794.0,0.158935]
[1731331320729,1.63833614,81807.0,81802.0,0.122245]
[1731331320933,1.63833614,81807.0,81802.0,0.122246]
[1731331321154,1.51609714,81807.0,81800.0,0.158923]
[1731331321367,0.122246,81802.0,81794.0,0.158935]
[1731331321580,1.51609714,81807.0,81794.0,0.158935]
[1731331321782,0.001,81804.0,81795.0,0.00359741]
[1731331322006,0.001,81804.0,81801.0,0.122247]
[1731331322244,0.001,81804.0,81793.0,0.102]
[1731331322451,0.001,81804.0,81803.0,0.122244]
[1731331322663,1.51709714,81807.0,81801.0,0.15892]
[1731331322867,1.51709714,81807.0,81803.0,0.122244]
[1731331323069,1.51709714,81807.0,81801.0,0.174812]
[1731331323070,1.51709714,81807.0,81801.0,0.015892]
[1731331323282,1.51709714,81807.0,81806.0,0.12224]
[1731331323542,1.51709714,81807.0,81804.0,0.122243]
[1731331323742,0.01709714,81807.0,81806.0,0.00355376]
[1731331323951,0.01709714,81807.0,81805.0,0.00355408]
[1731331324162,0.01709714,81807.0,81806.0,0.00355376]
[1731331324573,0.12224,81806.0,81797.0,0.158928]
[1731331324781,0.244481,81806.0,81801.0,0.18380438]
[1731331325010,0.01854617,81807.0,81793.0,0.1]
[1731331325011,0.122251,81799.0,81798.0,0.00355203]
[1731331325236,0.122251,81799.0,81772.0,0.005]
[1731331325237,0.122259,81793.0,81783.0,0.122273]
[1731331325454,0.122259,81793.0,81782.0,0.258959]
[1731331325662,0.00244903,81801.0,81793.0,0.122259]
[1731331325894,0.03,81795.0,81794.0,0.122258]
[1731331326105,0.00244903,81803.0,81778.0,0.1]
[1731331326312,0.00244903,81803.0,81790.0,0.18380438]
[1731331326517,0.244483,81805.0,81797.0,0.158929]
[1731331326723,0.122246,81803.0,81797.0,0.122253]
[1731331326932,0.12469603,81802.0,81793.0,0.158937]
[1731331327173,0.12469503,81802.0,81791.0,0.03427494]
[1731331327407,1.5,81801.0,81792.0,0.0223223]
[1731331327626,0.2445,81800.0,81790.0,0.34274738]
[1731331327845,0.122253,81798.0,81797.0,0.001]
[1731331328053,0.244501,81799.0,81790.0,0.18380438]
[1731331328054,0.244495,81801.0,81790.0,0.18380438]
[1731331328258,0.244495,81801.0,81767.0,0.005]
[1731331328259,1.50244903,81800.0,81783.0,0.158957]
[1731331328478,1.5,81800.0,81791.0,0.18980438]
[1731331328685,1.5,81800.0,81794.0,0.122257]
[1731331329104,1.5,81800.0,81797.0,0.001]
[1731331329532,1.5,81800.0,81797.0,0.1514698]
[1731331329769,1.5,81800.0,81797.0,0.123253]
[1731331329999,1.5,81800.0,81797.0,0.001]
[1731331330204,0.001684,81801.0,81800.0,0.122249]
[1731331330426,0.001684,81801.0,81797.0,0.001]
[1731331330666,0.001684,81801.0,81800.0,0.122249]
[1731331331459,0.004684,81801.0,81800.0,0.122249]
[1731331331809,0.001684,81801.0,81800.0,0.122249]
[1731331332013,0.001684,81801.0,81796.0,0.158931]
[1731331332211,0.001684,81801.0,81798.0,0.122251]
[1731331332420,0.001684,81801.0,81800.0,0.122249]
[1731331333483,0.001684,81801.0,81800.0,0.134249]
[1731331333734,0.002684,81801.0,81800.0,0.13773993]
[1731331333933,0.002684,81801.0,81800.0,0.13273993]
[1731331334133,0.003684,81801.0,81800.0,0.13273993]
[1731331334309,0.004684,81801.0,81800.0,0.12573993]
[1731331334704,0.001684,81801.0,81800.0,0.13073993]
[1731331335104,0.001684,81801.0,81800.0,0.13173993]
[1731331335331,0.001684,81801.0,81800.0,0.23173993]
[1731331335530,0.001684,81801.0,81800.0,0.23473993]
[1731331336507,0.001684,81801.0,81800.0,0.11149093]
[1731331336733,0.123931,81801.0,81800.0,0.00949093]
[1731331336952,0.123931,81801.0,81800.0,0.00649093]
[1731331337178,0.123931,81801.0,81800.0,0.005]
[1731331337403,0.24987321,81801.0,81800.0,0.005]
[1731331337613,0.46420846,81801.0,81800.0,0.009]
[1731331337823,0.005,81796.0,81786.0,0.18380438]
[1731331338028,0.122268,81787.0,81786.0,0.18380438]
[1731331338249,1.622268,81787.0,81786.0,0.18380438]
[1731331338668,0.122272,81785.0,81776.0,0.122284]
[1731331338878,0.122273,81784.0,81776.0,0.122284]
[1731331339091,0.122273,81784.0,81778.0,0.1]
[1731331339317,0.122274,81784.0,81778.0,0.1]
[1731331339516,0.122275,81783.0,81778.0,0.1]
[1731331339938,0.122276,81782.0,81778.0,0.1]
[1731331340149,0.00244903,81785.0,81778.0,0.1]
[1731331340354,0.122278,81781.0,81778.0,0.1]
[1731331340573,0.122298,81768.0,81759.0,0.12231]
[1731331340790,0.00244903,81767.0,81766.0,0.18380438]
[1731331341025,0.122298,81767.0,81766.0,0.18380438]
[1731331341220,0.25346977,81772.0,81757.0,0.18380438]
[1731331341221,0.244601,81766.0,81757.0,0.18380438]
[1731331341451,0.122308,81761.0,81757.0,0.18380438]
[1731331341640,0.24705503,81764.0,81757.0,0.18380438]
[1731331341874,0.122306,81762.0,81759.0,0.007]
[1731331342474,0.122303,81764.0,81759.0,0.007]
[1731331342753,1.5,81767.0,81759.0,0.007]
[1731331342754,0.00244903,81763.0,81759.0,0.007]
[1731331342955,0.001,81768.0,81761.0,0.146769]
[1731331343178,0.001,81768.0,81759.0,0.007]
[1731331343383,0.001,81768.0,81765.0,0.122301]
[1731331343544,0.00244903,81773.0,81765.0,0.244601]
[1731331343728,0.003,81767.0,81766.0,0.00358217]
[1731331343928,0.003,81767.0,81765.0,0.244601]
[1731331344136,0.12473803,81773.0,81770.0,0.122293]
[1731331344137,0.00244903,81773.0,81770.0,0.122293]
[1731331344346,0.00244903,81781.0,81766.0,0.00358185]
[1731331344579,0.122283,81778.0,81771.0,0.12587317]
[1731331344852,0.122283,81778.0,81771.0,0.122291]
[1731331344853,0.003,81773.0,81771.0,0.122291]
[1731331345022,0.003,81773.0,81772.0,0.12587444]
[1731331345232,0.00244903,81781.0,81772.0,0.12587444]
[1731331345233,0.122279,81780.0,81772.0,0.12587444]
[1731331345427,0.244564,81778.0,81772.0,0.00358344]
[1731331345700,0.00244903,81777.0,81766.0,0.005]
[1731331345896,0.152288,81774.0,81773.0,0.00359489]
[1731331346373,0.03,81774.0,81773.0,0.00359442]
[1731331346605,0.03,81774.0,81769.0,0.18380438]
[1731331346825,0.03,81774.0,81773.0,0.122289]
[1731331347024,0.03,81774.0,81770.0,0.15033565]
[1731331347239,0.03,81774.0,81773.0,0.00358169]
[1731331347466,0.03,81774.0,81773.0,0.122289]
[1731331347680,0.03,81774.0,81773.0,0.00358137]
[1731331348088,0.036,81774.0,81773.0,0.001]
[1731331348301,0.036,81774.0,81773.0,0.00458137]
[1731331348509,0.038,81774.0,81773.0,0.00458137]
[1731331348725,0.161288,81774.0,81773.0,0.00458137]
[1731331348989,0.161288,81774.0,81773.0,0.001]
[1731331349869,0.16494221,81774.0,81761.0,0.1]
[1731331350084,0.122307,81762.0,81756.0,0.123157]
[1731331350286,0.122304,81763.0,81762.0,0.00358488]
[1731331350790,0.244585,81771.0,81757.0,0.122312]
[1731331350986,0.1223,81766.0,81762.0,0.00358121]
[1731331351163,0.122303,81764.0,81761.0,0.004]
[1731331351475,0.122303,81764.0,81763.0,0.00358185]
[1731331351685,0.122303,81764.0,81763.0,0.00358121]
[1731331352303,0.122312,81758.0,81757.0,0.1]
[1731331352782,0.122312,81758.0,81757.0,0.10358121]
[1731331353006,0.244606,81764.0,81757.0,0.1]
[1731331353213,0.122312,81758.0,81757.0,0.0035989]
[1731331353420,0.122313,81757.0,81756.0,0.000842]
[1731331353647,0.50172498,81757.0,81756.0,0.000842]
[1731331353854,0.50172498,81757.0,81756.0,0.00444154]
[1731331354082,0.50172498,81757.0,81756.0,0.000842]
[1731331354949,0.25125521,81757.0,81756.0,0.000842]
[1731331355176,1.75370424,81757.0,81756.0,0.000842]
[1731331355402,1.75125521,81757.0,81756.0,0.000842]
[1731331356017,1.74825521,81757.0,81756.0,0.000842]
[1731331356426,1.74825521,81757.0,81756.0,0.001842]
[1731331356427,1.75825521,81757.0,81756.0,0.001842]
[1731331356631,1.76625521,81757.0,81756.0,0.002842]
[1731331357002,1.75625521,81757.0,81756.0,0.001842]
[1731331357273,1.74786221,81757.0,81756.0,0.000842]
[1731331357428,1.75186221,81757.0,81756.0,0.000842]
[1731331357631,1.75386221,81757.0,81756.0,0.000842]
[1731331358019,1.75786221,81757.0,81756.0,0.001842]
[1731331358212,1.75786221,81757.0,81756.0,0.002842]
[1731331358421,1.76586221,81757.0,81756.0,0.002842]
[1731331359621,1.75786221,81757.0,81756.0,0.000842]
[1731331359829,1.74786221,81757.0,81756.0,0.000842]
[1731331360145,1.76586221,81757.0,81756.0,0.002842]
[1731331360345,1.76586221,81757.0,81756.0,0.001842]
[1731331360595,1.77586221,81757.0,81756.0,0.002842]
[1731331361563,0.028,81757.0,81756.0,0.02226314]
[1731331361778,0.028,81757.0,81756.0,0.14457814]
[1731331362000,0.028,81757.0,81756.0,0.12885826]
[1731331362169,0.150313,81757.0,81756.0,0.00654326]
[1731331362404,0.028,81757.0,81756.0,0.00654326]
[1731331362553,0.028,81757.0,81756.0,0.125157]
[1731331362755,0.028,81757.0,81756.0,0.12884984]
[1731331366345,0.028,81757.0,81756.0,0.26940172]
[1731331366547,0.028,81757.0,81756.0,0.48349]
[1731331366745,0.028,81757.0,81756.0,0.48104393]
[1731331366976,0.028,81757.0,81756.0,0.48004393]
[1731331366977,0.02,81757.0,81756.0,0.48004393]
[1731331367132,0.02,81757.0,81756.0,0.48387067]
[1731331367326,0.024,81757.0,81756.0,0.48887067]
[1731331367528,0.014,81757.0,81756.0,0.48887067]
[1731331367732,0.122273,81784.0,81776.0,0.122283]
[1731331368053,0.12228,81780.0,81773.0,0.122288]
[1731331368270,0.12228,81780.0,81775.0,0.122286]
[1731331368455,0.122286,81775.0,81774.0,0.00369381]
[1731331368656,0.00244903,81776.0,81770.0,0.1]
[1731331368995,0.12229,81773.0,81770.0,0.1]
[1731331369146,1.5,81775.0,81770.0,0.1]
[1731331369347,1.5,81775.0,81773.0,0.001]
[1731331369348,0.122288,81774.0,81773.0,0.001]
[1731331369555,0.244578,81774.0,81770.0,0.1]
[1731331369758,0.122291,81773.0,81770.0,0.1]
[1731331370186,0.122296,81769.0,81759.0,0.159003]
[1731331370357,0.122296,81769.0,81763.0,0.122303]
[1731331370358,0.00244903,81768.0,81763.0,0.122303]
[1731331370559,0.00244903,81768.0,81764.0,0.1]
[1731331370760,0.00244903,81770.0,81764.0,0.1]
[1731331370964,0.122301,81765.0,81764.0,0.1]
[1731331371455,0.244591,81769.0,81764.0,0.1]
[1731331371697,0.011,81774.0,81763.0,0.1]
[1731331371898,0.122303,81764.0,81763.0,0.1]
[1731331372418,0.122303,81764.0,81756.0,0.000842]
[1731331372419,0.122313,81757.0,81756.0,0.000842]
[1731331372620,0.29153029,81757.0,81756.0,0.000842]
[1731331372821,1.79153029,81757.0,81756.0,0.000842]
[1731331373241,1.622313,81757.0,81756.0,0.000842]
[1731331373799,1.625313,81757.0,81756.0,0.000842]
[1731331374212,1.6290929,81757.0,81756.0,0.000842]
[1731331374782,1.625313,81757.0,81756.0,0.000842]
[1731331375507,1.632313,81757.0,81756.0,0.001842]
[1731331376018,1.633313,81757.0,81756.0,0.001842]
[1731331376251,1.622313,81757.0,81756.0,0.000842]
[1731331376453,1.627313,81757.0,81756.0,0.000842]
[1731331376679,1.630313,81757.0,81756.0,0.000842]
[1731331376826,1.625313,81757.0,81756.0,0.000842]
[1731331377235,1.640313,81757.0,81756.0,0.002842]
[1731331377438,1.518,81757.0,81756.0,0.1384297]
[1731331377595,0.007,81757.0,81756.0,0.1374297]
[1731331377809,0.013,81757.0,81756.0,0.14214744]
[1731331378174,0.135313,81757.0,81756.0,0.00655974]
[1731331378579,0.128313,81757.0,81756.0,0.001842]
[1731331379028,0.135313,81757.0,81756.0,0.002842]
[1731331379273,1.629313,81757.0,81756.0,0.001842]
[1731331379475,1.630313,81757.0,81756.0,0.001842]
[1731331379686,1.63020275,81757.0,81756.0,0.001842]
[1731331379863,1.62220275,81757.0,81756.0,0.000842]
[1731331380062,1.506,81757.0,81756.0,0.001842]
[1731331380291,1.513,81757.0,81756.0,0.002842]
[1731331380498,1.629313,81757.0,81756.0,0.001842]
[1731331380707,1.513,81757.0,81756.0,0.002842]
[1731331380877,1.513,81757.0,81756.0,0.125157]
[1731331381115,1.513,81757.0,81756.0,0.12887474]
[1731331381247,1.513,81757.0,81756.0,0.00655974]
[1731331381454,1.513,81757.0,81756.0,0.002842]
[1731331381753,1.513,81757.0,81756.0,0.001842]
[1731331381754,1.506,81757.0,81756.0,0.001842]
[1731331381947,1.635313,81757.0,81756.0,0.002842]
[1731331382954,1.76125521,81757.0,81756.0,0.002842]
[1731331385243,1.513,81757.0,81756.0,0.002842]
[1731331385449,1.513,81757.0,81756.0,0.125157]
[1731331385647,0.013,81757.0,81756.0,0.125157]
[1731331385857,0.013,81757.0,81756.0,0.12889891]
[1731331386297,0.013,81757.0,81756.0,0.00658391]
[1731331386633,0.013,81757.0,81756.0,0.002842]
[1731331386872,0.01544903,81757.0,81756.0,0.002842]
[1731331387103,1.513,81757.0,81756.0,0.14585256]
[1731331387308,1.513,81757.0,81756.0,0.1420997]
[1731331387527,1.513,81757.0,81756.0,0.14584161]
[1731331388456,1.514688,81757.0,81756.0,0.14584161]
[1731331388791,1.514688,81757.0,81756.0,0.002842]
[1731331388993,1.514688,81757.0,81756.0,0.125157]
[1731331389191,1.514688,81757.0,81756.0,0.002842]
[1731331389395,1.514688,81757.0,81756.0,0.125157]
[1731331389684,0.014688,81757.0,81756.0,0.12889891]
[1731331390757,0.014688,81757.0,81756.0,0.00658391]
[1731331390895,0.014688,81757.0,81756.0,0.12889891]
[1731331392516,0.014688,81757.0,81756.0,0.22889891]
[1731331394893,0.014688,81757.0,81756.0,0.4649757]
[1731331395097,0.014688,81757.0,81756.0,0.4699757]
[1731331395301,0.014688,81757.0,81756.0,0.44864112]
[1731331395510,0.007688,81757.0,81756.0,0.47155264]
[1731331395710,0.007688,81757.0,81756.0,0.55738982]
[1731331395920,0.007688,81757.0,81756.0,0.56238982]
[1731331396128,0.18380438,81783.0,81782.0,0.122276]
[1731331396328,0.18380438,81783.0,81782.0,0.222276]
[1731331396550,0.001684,81801.0,81784.0,0.158955]
[1731331396750,0.00413303,81801.0,81795.0,0.122255]
[1731331396970,0.00413303,81801.0,81796.0,0.0122255]
[1731331396971,0.123937,81800.0,81796.0,0.0122255]
[1731331397366,0.001688,81800.0,81796.0,0.13814554]
[1731331397646,0.00244903,81799.0,81796.0,0.01589154]
[1731331397801,0.123938,81800.0,81797.0,0.02970845]
[1731331398016,0.122252,81798.0,81797.0,0.02970845]
[1731331398205,0.24451,81796.0,81789.0,0.1]
[1731331398403,0.12226,81793.0,81789.0,0.1]
[1731331398605,0.12470603,81795.0,81790.0,0.00366667]
[1731331398804,0.122258,81794.0,81790.0,0.00366667]
[1731331399014,0.00244903,81795.0,81790.0,0.00366667]
[1731331399218,0.00744903,81798.0,81797.0,0.001]
[1731331399435,0.005,81798.0,81797.0,0.123253]
[1731331399637,0.005,81798.0,81797.0,0.12691782]
[1731331399841,0.006688,81800.0,81799.0,0.12225]
[1731331400245,0.006688,81800.0,81799.0,0.12591509]
[1731331400452,0.001688,81800.0,81799.0,0.03151522]
[1731331400650,0.001688,81800.0,81799.0,0.15376522]
[1731331401454,0.002688,81800.0,81799.0,0.03251522]
[1731331401671,0.002688,81800.0,81799.0,0.00466509]
[1731331401672,0.124937,81800.0,81799.0,0.00466509]
[1731331401897,0.002688,81800.0,81799.0,0.00466509]
[1731331402126,0.002688,81800.0,81799.0,0.001]
[1731331402347,0.008688,81800.0,81799.0,0.002]
[1731331402565,0.130937,81800.0,81799.0,0.00561882]
[1731331402794,0.130937,81800.0,81799.0,0.002]
[1731331403646,0.008688,81800.0,81799.0,0.0144257]
[1731331404141,0.008688,81800.0,81799.0,0.01804504]
[1731331404372,0.008688,81800.0,81799.0,0.00561934]
[1731331404597,0.008688,81800.0,81799.0,0.002]
[1731331404771,0.008688,81800.0,81799.0,0.12425]
[1731331405187,0.008688,81800.0,81799.0,0.0056196]
[1731331405748,0.008688,81800.0,81799.0,0.002]
[1731331406136,0.008688,81800.0,81799.0,0.12425]
[1731331406341,0.008688,81800.0,81796.0,0.158931]
[1731331406644,0.008688,81800.0,81799.0,0.12225]
[1731331407190,0.007688,81800.0,81799.0,0.00354589]
[1731331407400,0.012688,81800.0,81795.0,0.122255]
[1731331407611,0.012688,81800.0,81792.0,0.0774]
[1731331407612,0.012688,81800.0,81799.0,0.00354615]
[1731331407825,0.007688,81800.0,81799.0,0.00354615]
[1731331408032,0.007688,81800.0,81796.0,0.122255]
[1731331408242,0.001688,81800.0,81794.0,0.158934]
[1731331408444,0.136937,81800.0,81799.0,0.001]
[1731331408651,0.30594193,81800.0,81799.0,0.001]
[1731331409062,1.80594193,81800.0,81799.0,0.001]
[1731331409258,1.629937,81800.0,81799.0,0.001]
[1731331409518,2.06282635,81800.0,81799.0,0.002]
[1731331409718,2.01398414,81800.0,81799.0,0.002]
[1731331409942,2.03898414,81800.0,81799.0,0.002]
[1731331410152,0.29128693,81778.0,81763.0,0.122303]
[1731331410466,0.24822421,81778.0,81763.0,0.122304]
[1731331410672,0.24822421,81778.0,81765.0,0.1223]
[1731331410829,1.74822421,81778.0,81766.0,0.158988]
[1731331411029,1.74822421,81778.0,81767.0,0.122297]
[1731331411030,0.114726,81775.0,81767.0,0.122297]
[1731331411246,0.00244903,81775.0,81772.0,0.18380438]
[1731331411502,0.00244903,81775.0,81768.0,0.00354804]
[1731331411704,0.00244903,81775.0,81762.0,0.122306]
[1731331411705,0.122295,81769.0,81762.0,0.122306]
[1731331411909,0.122295,81769.0,81764.0,0.1]
[1731331412123,0.122293,81771.0,81764.0,0.222302]
[1731331412414,0.122296,81769.0,81767.0,0.001]
[1731331412569,0.00244903,81770.0,81767.0,0.001]
[1731331412772,0.00244903,81770.0,81766.0,0.1]
[1731331412978,0.122291,81772.0,81768.0,0.00365028]
[1731331413197,0.001,81769.0,81768.0,0.122297]
[1731331413376,0.001,81769.0,81768.0,0.26079096]
[1731331413575,0.001,81769.0,81768.0,0.26442945]
[1731331414593,0.001,81770.0,81769.0,0.222295]
[1731331414901,0.003,81770.0,81769.0,0.222295]
[1731331415114,0.002,81770.0,81769.0,0.24039828]
[1731331415307,0.002,81770.0,81769.0,0.24403677]
[1731331415564,0.122285,81776.0,81771.0,0.122291]
[1731331415811,1.5,81795.0,81769.0,0.24403677]
[1731331415812,0.00244903,81775.0,81769.0,0.10363849]
[1731331415931,0.122284,81777.0,81772.0,0.00363945]
[1731331416131,0.00244903,81776.0,81771.0,0.1]
[1731331416341,0.122287,81775.0,81771.0,0.1]
[1731331416702,0.122287,81775.0,81772.0,0.00364594]
[1731331416843,0.122284,81777.0,81772.0,0.16079484]
[1731331417050,0.126284,81777.0,81772.0,0.03850484]
[1731331417456,0.24701903,81776.0,81772.0,0.03850484]
[1731331417677,0.122286,81776.0,81772.0,0.00364594]
[1731331417876,0.122284,81777.0,81772.0,0.00364594]
[1731331418079,0.122286,81776.0,81773.0,0.04127413]
[1731331418288,0.001,81777.0,81773.0,0.00363447]
[1731331418541,0.007,81777.0,81773.0,0.00363447]
[1731331418742,0.122285,81776.0,81773.0,0.00363447]
[1731331418965,0.001,81777.0,81773.0,0.00363447]
[1731331419179,0.122286,81776.0,81771.0,0.222292]
[1731331419396,0.004,81776.0,81774.0,0.00363415]
[1731331419601,0.122287,81775.0,81771.0,0.1]
[1731331419797,0.244568,81777.0,81771.0,0.1]
[1731331420017,0.244568,81777.0,81768.0,0.122296]
[1731331420018,0.002,81776.0,81772.0,0.12592315]
[1731331420245,0.002,81776.0,81773.0,0.123289]
[1731331420444,0.005,81776.0,81774.0,0.122288]
[1731331420777,0.005,81776.0,81775.0,0.122286]
[1731331420952,0.005,81776.0,81775.0,0.22473174]
[1731331421206,0.005,81776.0,81775.0,0.30107012]
[1731331421207,0.003,81776.0,81775.0,0.30107012]
[1731331421427,0.00244903,81794.0,81777.0,0.415763]
[1731331421653,0.00244903,81794.0,81790.0,0.122263]
[1731331421917,0.00244903,81794.0,81788.0,0.14672]
[1731331422101,0.12470703,81794.0,81791.0,0.00326718]
[1731331422308,0.122262,81792.0,81784.0,0.1]
[1731331422514,0.00244903,81791.0,81784.0,0.1]
[1731331422735,0.001,81794.0,81784.0,0.1]
[1731331422946,0.122266,81789.0,81784.0,0.1]
[1731331423155,0.00244903,81790.0,81784.0,0.1]
[1731331423362,0.122268,81788.0,81783.0,0.122274]
[1731331423567,0.122268,81788.0,81784.0,0.105]
[1731331423770,0.00244903,81790.0,81784.0,0.227272]
[1731331423771,0.03,81786.0,81784.0,0.227272]
[1731331423980,0.03,81786.0,81785.0,0.00325258]
[1731331424189,0.03,81786.0,81785.0,0.34912358]
[1731331424656,0.03,81786.0,81785.0,0.10325258]
[1731331424860,0.03,81786.0,81785.0,0.22552358]
[1731331425935,0.03,81786.0,81785.0,0.22952358]
[1731331426565,0.03,81786.0,81785.0,0.22552358]
[1731331426757,0.031,81786.0,81785.0,0.22752358]
[1731331427165,0.031,81786.0,81785.0,0.23252358]
[1731331427917,0.031,81786.0,81785.0,0.11025258]
[1731331428123,0.031,81786.0,81785.0,0.23252358]